bitfinex-derivatives/quotes_SOLF0:USTF0_20251108
["timestamp","ask_amount","ask_price","bid_price","bid_amount"]
[1762601688764,10.67430492,160.45,160.41,0.04274622]
[1762601688967,3.0,160.44,160.41,0.04274622]
[1762601689373,8.6127,160.44,160.41,0.04274622]
[1762601689565,3.0,160.43,160.41,0.04274622]
[1762601691067,10.62737721,160.43,160.41,0.04274622]
[1762601691270,3.0,160.42,160.41,0.04274622]
[1762601691463,3.0,160.42,160.36,3.1]
[1762601691670,3.0,160.4,160.32,61.82]
[1762601691973,2.01437721,160.39,160.33,3.1]
[1762601692667,0.04043138,160.38,160.33,3.1]
[1762601693066,0.04043138,160.38,160.35,3.1]
[1762601693375,3.04043138,160.38,160.35,3.1]
[1762601693764,3.04043138,160.38,160.32,64.92]
[1762601693969,3.04043138,160.38,160.33,3.1]
[1762601694177,3.0,160.37,160.33,3.1]
[1762601694373,3.0,160.36,160.33,3.1]
[1762601696176,3.0,160.36,160.3,8.7173]
[1762601696369,0.03990722,160.35,160.31,8.7171]
[1762601696570,0.03990722,160.35,160.32,3.1]
[1762601702777,3.16,160.34,160.31,2.94]
[1762601703082,3.16,160.34,160.27,2.94]
[1762601703382,0.04063685,160.32,160.27,2.94]
[1762601704379,3.20063685,160.32,160.28,2.94]
[1762601705187,3.20063685,160.32,160.29,2.94]
[1762601705377,0.04063685,160.32,160.29,2.94]
[1762601706183,3.20063685,160.32,160.29,2.94]
[1762601706771,0.04063685,160.32,160.29,2.94]
[1762601707987,3.20063685,160.32,160.24,2.94]
[1762601708184,3.20063685,160.32,160.25,2.94]
[1762601709078,3.20063685,160.32,160.27,2.94]
[1762601709679,3.20063685,160.32,160.28,2.94]
[1762601716889,0.04063685,160.32,160.28,2.94]
[1762601717478,3.20063685,160.32,160.28,2.94]
[1762601717682,3.20063685,160.32,160.29,2.94]
[1762601719290,3.16,160.31,160.25,5.619]
[1762601719501,3.20767581,160.3,160.26,2.94]
[1762601719684,0.04767581,160.3,160.26,2.94]
[1762601721088,0.04767581,160.3,160.28,2.94]
[1762601724689,0.04767581,160.3,160.29,2.94]
[1762601727586,0.04767581,160.3,160.26,2.94]
[1762601728582,0.04767581,160.3,160.27,2.94]
[1762601732985,0.04767581,160.3,160.27,8.5585]
[1762601733380,0.04767581,160.3,160.28,3.03]
[1762601735390,2.93767581,160.3,160.28,3.03]
[1762601735788,2.93767581,160.3,160.27,3.03]
[1762601745304,0.04767581,160.3,160.28,3.05]
[1762601746098,0.04767581,160.3,160.29,3.05]
[1762601750299,7.46495383,160.3,160.27,3.05]
[1762601750506,0.04767581,160.3,160.27,3.05]
[1762601751998,0.04767581,160.3,160.28,3.05]
[1762601753203,2.92767581,160.3,160.25,3.05]
[1762601753508,0.04767581,160.3,160.25,3.05]
[1762601753708,0.04767581,160.3,160.26,3.05]
[1762601754708,2.92767581,160.3,160.26,3.05]
[1762601756307,0.04767581,160.3,160.26,3.05]
[1762601757309,0.04767581,160.3,160.28,3.05]
[1762601759112,0.04767581,160.3,160.28,8.6682]
[1762601759306,0.04767581,160.3,160.29,3.05]
[1762601760407,0.04767581,160.3,160.27,3.05]
[1762601763116,0.04767581,160.3,160.28,2.89]
[1762601763708,0.04767581,160.3,160.28,8.508]
[1762601764008,0.04767581,160.3,160.29,2.89]
[1762601765229,0.04767581,160.3,160.27,2.89]
[1762601765630,3.10767581,160.3,160.27,2.89]
[1762601765930,0.04767581,160.3,160.27,2.89]
[1762601766228,8.72527581,160.3,160.27,2.89]
[1762601766723,5.66527581,160.3,160.27,2.89]
[1762601767930,0.04767581,160.3,160.27,2.89]
[1762601770128,4.49642619,160.29,160.27,2.89]
[1762601770428,8.678,160.29,160.27,2.89]
[1762601771132,0.04767581,160.3,160.27,2.89]
[1762601772033,0.04767581,160.3,160.28,2.89]
[1762601772334,3.06,160.32,160.29,10.68854514]
[1762601772630,64.0,160.34,160.3,10.68854514]
[1762601772631,4.49656569,160.31,160.3,10.68854514]
[1762601773230,4.49656569,160.31,160.3,2.89]
[1762601773930,3.06,160.3,160.29,0.04131146]
[1762601774128,3.06,160.31,160.29,0.04131146]
[1762601783843,3.06,160.3,160.29,0.04131146]
[1762601784839,3.06,160.28,160.24,2.89]
[1762601785633,3.10116877,160.28,160.24,2.89]
[1762601785937,3.10116877,160.28,160.24,8.5096]
[1762601786133,3.10116877,160.28,160.25,2.89]
[1762601788046,3.10116877,160.28,160.26,2.89]
[1762601789745,3.10116877,160.28,160.24,2.89]
[1762601790243,3.10116877,160.28,160.25,5.6192]
[1762601790455,3.10116877,160.28,160.26,2.89]
[1762601791843,3.10116877,160.28,160.24,3.17]
[1762601792744,3.10116877,160.28,160.25,3.17]
[1762601793948,3.10116877,160.28,160.22,3.17]
[1762601795044,3.10116877,160.28,160.24,3.17]
[1762601795244,3.14,160.27,160.23,8.7899]
[1762601795855,3.14,160.25,160.21,5.6204]
[1762601796153,3.18223234,160.25,160.21,8.7904]
[1762601797246,3.14,160.24,160.2,3.17]
[1762601798341,2.01810465,160.23,160.2,3.17]
[1762601798545,3.14,160.22,160.2,3.17]
[1762601798748,3.14,160.22,160.19,3.17]
[1762601798955,3.18292456,160.22,160.19,3.17]
[1762601800753,3.14,160.21,160.18,1.57370694]
[1762601800959,5.15810465,160.19,160.18,1.57370694]
[1762601802859,2.92,160.18,160.13,8.7132]
[1762601803154,0.04292456,160.22,160.11,8.714]
[1762601803155,2.92,160.16,160.11,8.714]
[1762601803355,2.92,160.16,160.12,3.09]
[1762601803656,2.96299318,160.17,160.12,3.09]
[1762601804552,2.96299318,160.17,160.12,8.7137]
[1762601804758,2.96299318,160.17,160.13,3.09]
[1762601804952,2.01810465,160.16,160.1,3.09]
[1762601805157,2.96704102,160.15,160.1,3.09]
[1762601805353,4.93810465,160.14,160.1,3.09]
[1762601805562,2.92,160.13,160.05,3.09]
[1762601805764,2.96555111,160.11,160.06,3.09]
[1762601806460,0.04555111,160.11,160.06,3.09]
[1762601806663,2.96555111,160.11,160.06,8.7157]
[1762601806854,0.04555111,160.11,160.07,3.09]
[1762601807356,2.96555111,160.11,160.07,3.09]
[1762601809757,0.04555111,160.11,160.07,3.09]
[1762601810559,2.96555111,160.11,160.07,3.09]
[1762601811465,2.96555111,160.11,160.08,3.09]
[1762601812058,2.96555111,160.11,160.06,3.09]
[1762601812259,2.96555111,160.11,160.06,3.11059727]
[1762601812760,2.96555111,160.11,160.07,3.09]
[1762601814367,0.04555111,160.11,160.07,3.09]
[1762601814559,0.04555111,160.11,160.07,8.7155]
[1762601814763,0.04555111,160.11,160.08,3.09]
[1762601815466,0.04555111,160.11,160.08,8.7151]
[1762601815765,0.04555111,160.11,160.09,3.09]
[1762601817567,0.04555111,160.11,160.09,8.7147]
[1762601817869,0.04555111,160.11,160.1,3.09]
[1762601818963,2.96555111,160.11,160.09,3.09]
[1762601819764,0.04555111,160.11,160.09,3.09]
[1762601821468,3.11,160.1,160.07,2.98]
[1762601821970,3.15555111,160.11,160.08,2.98]
[1762601822975,3.15555111,160.11,160.06,3.00059727]
[1762601823172,3.11,160.09,160.06,0.02059727]
[1762601823674,3.11,160.1,160.06,0.02059727]
[1762601823875,3.11,160.1,160.0,2.98]
[1762601823876,3.11,160.07,160.0,2.98]
[1762601824075,3.11,160.02,159.99,2.98]
[1762601824272,3.11,160.02,159.94,2.01810465]
[1762601824273,3.11,160.02,159.95,2.98]
[1762601824478,3.11,160.02,159.96,2.98]
[1762601824673,2.01810465,160.01,159.96,2.98]
[1762601824878,3.15742962,160.0,159.96,2.98]
[1762601825177,3.15742962,160.0,159.92,2.01810465]
[1762601825178,3.15742962,160.0,159.92,2.98]
[1762601825383,3.11,159.98,159.92,2.98]
[1762601825681,3.11,159.96,159.92,2.98]
[1762601825979,3.14939083,159.96,159.92,2.98]
[1762601826373,3.11,159.92,159.85,1.57370694]
[1762601826573,0.04265397,159.9,159.86,2.98]
[1762601827178,3.15265397,159.9,159.86,2.98]
[1762601827681,5.12810465,159.89,159.85,4.55370694]
[1762601827983,3.11,159.89,159.85,4.55370694]
[1762601828184,3.11,159.88,159.85,1.57370694]
[1762601828396,3.11,159.86,159.85,0.84265071]
[1762601828574,3.11,159.85,159.78,2.98]
[1762601828885,0.04387028,159.83,159.78,2.98]
[1762601829288,0.04387028,159.83,159.79,2.98]
[1762601830780,0.04387028,159.83,159.79,4.99810465]
[1762601830985,0.04387028,159.83,159.82,2.98]
[1762601831186,0.044951,159.84,159.82,2.98]
[1762601831488,0.044951,159.84,159.83,2.98]
[1762601834890,0.044951,159.84,159.81,8.6144]
[1762601835194,0.044951,159.84,159.82,2.98]
[1762601835586,0.044951,159.84,159.79,5.6353]
[1762601835787,3.154951,159.84,159.8,2.98]
[1762601835993,3.15660488,159.84,159.8,2.98]
[1762601837087,0.04660488,159.84,159.81,2.98]
[1762601838087,0.04660488,159.84,159.83,2.98]
[1762601838289,0.04035668,159.85,159.83,2.98]
[1762601838490,0.04517869,159.86,159.83,2.98]
[1762601839494,0.04517869,159.86,159.84,2.98]
[1762601840792,0.04517869,159.86,159.81,7.65280465]
[1762601840793,3.15517869,159.86,159.82,2.98]
[1762601840997,0.04517869,159.86,159.82,2.98]
[1762601843690,2.01810465,159.96,159.86,2.98]
[1762601843890,3.11,159.95,159.86,2.98]
[1762601844195,3.11,159.95,159.87,2.01810465]
[1762601844388,3.11,159.95,159.88,5.6321]
[1762601844585,3.11,159.95,159.88,8.6121]
[1762601844798,3.15139611,159.93,159.9,0.0451787]
[1762601849701,3.11,159.91,159.79,2.98]
[1762601849904,3.11,159.85,159.79,2.98]
[1762601850203,18.69,159.94,159.81,5.6346]
[1762601850204,3.11,159.88,159.81,5.6346]
[1762601850401,3.11,159.88,159.79,2.98]
[1762601850702,0.04709033,159.85,159.79,2.98]
[1762601851198,3.09,159.84,159.79,2.98]
[1762601852391,0.04709033,159.85,159.79,2.98]
[1762601853401,3.13709033,159.85,159.79,2.98]
[1762601854604,0.04709033,159.85,159.79,2.98]
[1762601855711,3.13709033,159.85,159.8,8.5549]
[1762601856011,0.04772157,159.84,159.8,8.5549]
[1762601856709,0.04772157,159.84,159.81,2.92]
[1762601856901,0.04516532,159.84,159.81,2.92]
[1762601857103,3.13516532,159.84,159.81,2.92]
[1762601857506,3.13516532,159.84,159.78,2.92]
[1762601858109,3.13516532,159.84,159.79,2.92]
[1762601858309,0.04516532,159.84,159.79,2.92]
[1762601859116,0.04516532,159.84,159.8,2.92]
[1762601860322,0.04516532,159.84,159.83,2.92]
[1762601862322,69.631,159.92,159.85,8.5531]
[1762601862323,64.0,159.92,159.85,8.5531]
[1762601862514,3.09,159.93,159.85,8.5531]
[1762601862913,8.791,159.92,159.85,8.5531]
[1762601863317,3.20122072,159.9,159.87,0.04030354]
[1762601864322,8.83292072,159.9,159.87,0.04030354]
[1762601864518,3.16,159.89,159.87,0.04030354]
[1762601865616,3.16,159.88,159.81,3.17]
[1762601866418,3.16,159.87,159.81,3.17]
[1762601866619,3.19961995,159.86,159.81,3.17]
[1762601868726,3.19961995,159.86,159.82,3.17]
[1762601868926,3.20569893,159.86,159.82,3.17]
[1762601871033,0.04569893,159.86,159.82,3.17]
[1762601872320,8.7934,159.85,159.79,3.17]
[1762601872834,3.16,159.85,159.79,8.8054]
[1762601873129,0.04569893,159.86,159.79,3.17]
[1762601873321,3.16,159.85,159.79,3.17]
[1762601874829,3.16,159.83,159.79,3.17]
[1762601875030,3.20085815,159.83,159.79,3.17]
[1762601878339,3.20085815,159.83,159.72,11.57428964]
[1762601878531,0.0472893,159.79,159.75,3.17]
[1762601879640,0.0472893,159.79,159.77,3.17]
[1762601881338,2.9472893,159.79,159.73,3.16]
[1762601882438,8.5828893,159.79,159.73,3.16]
[1762601882841,2.9,159.78,159.73,3.16]
[1762601885639,2.9,159.77,159.71,5.6381]
[1762601885839,2.94705619,159.76,159.72,3.16]
[1762601886439,2.94705619,159.76,159.72,8.7978]
[1762601886634,2.94705619,159.76,159.72,3.16]
[1762601887845,2.94705619,159.76,159.68,14.73428964]
[1762601888047,2.94705619,159.76,159.69,3.16]
[1762601888348,0.04731317,159.74,159.69,3.16]
[1762601888942,0.04731317,159.74,159.71,3.16]
[1762601890540,0.04731317,159.74,159.72,3.16]
[1762601891147,0.04731317,159.74,159.73,3.16]
[1762601891552,2.9,159.82,159.74,3.16]
[1762601891844,2.9,159.82,159.76,3.16]
[1762601892343,66.9,159.84,159.79,3.16]
[1762601892551,0.04479285,159.83,159.8,3.20445734]
[1762601893050,2.94479285,159.83,159.8,3.20445734]
[1762601893551,0.04479285,159.83,159.81,3.16]
[1762601894454,0.04479285,159.83,159.81,8.7946]
[1762601894751,0.04479285,159.83,159.82,3.16]
[1762601896849,2.9,159.9,159.84,3.16]
[1762601897851,2.94351498,159.89,159.85,3.19976434]
[1762601899262,0.04351498,159.89,159.86,5.6328]
[1762601899554,0.04351498,159.89,159.87,3.16]
[1762601899956,2.94351498,159.89,159.85,3.19976434]
[1762601900149,0.04351498,159.89,159.85,3.19976434]
[1762601900350,0.04351498,159.89,159.86,5.6328]
[1762601900649,0.04351498,159.89,159.87,3.16]
[1762601900850,0.04351498,159.89,159.87,8.7925]
[1762601901044,0.04351498,159.89,159.88,3.16]
[1762601901343,2.9,159.96,159.88,3.16]
[1762601901543,2.9,159.96,159.9,8.7914]
[1762601901858,2.9,159.96,159.9,3.16]
[1762601902250,0.03972396,159.95,159.9,3.16]
[1762601902456,2.93972396,159.95,159.91,3.20211486]
[1762601902761,2.94628299,159.95,159.91,3.20211486]
[1762601905156,0.04628299,159.95,159.91,3.20211486]
[1762601907060,0.04628299,159.95,159.92,3.16]
[1762601907754,0.04628299,159.95,159.92,8.7907]
[1762601907953,0.04628299,159.95,159.93,3.16]
[1762601909154,0.04628299,159.95,159.91,0.04211486]
[1762601909155,0.04628299,159.95,159.91,3.20211486]
[1762601909661,2.94628299,159.95,159.91,3.20211486]
[1762601909857,2.94628299,159.95,159.91,0.04211486]
[1762601910060,6.11765288,159.95,159.91,0.04211486]
[1762601910259,2.9,159.94,159.91,0.04211486]
[1762601911061,2.9,159.91,159.84,3.16]
[1762601911851,2.9,159.91,159.85,5.6332]
[1762601912050,0.04460474,159.9,159.86,3.10756096]
[1762601913058,0.04460474,159.9,159.86,5.68046096]
[1762601913258,0.04460474,159.9,159.87,3.06]
[1762601914162,2.93460474,159.9,159.87,3.06]
[1762601914467,2.89,159.87,159.86,0.04756096]
[1762601914966,2.89,159.89,159.86,0.04756096]
[1762601915162,2.02911647,159.88,159.86,0.04756096]
[1762601917075,2.89,159.89,159.86,0.04756096]
[1762601917367,2.02911647,159.88,159.86,0.04756096]
[1762601918367,4.91911647,159.88,159.86,0.04756096]
[1762601919066,4.96372121,159.9,159.86,3.10756096]
[1762601919770,2.07372121,159.9,159.87,3.06]
[1762601920664,4.96372121,159.9,159.86,5.68036096]
[1762601921068,4.96372121,159.9,159.86,8.74036096]
[1762601921871,4.96372121,159.9,159.87,3.06]
[1762601922260,0.04460474,159.9,159.87,8.6925]
[1762601922465,0.04460474,159.9,159.87,3.06]
[1762601924066,0.04460474,159.9,159.88,8.5822]
[1762601924869,0.04460474,159.9,159.89,2.95]
[1762601931165,2.02911647,159.96,159.92,2.95]
[1762601932173,2.07525104,159.96,159.94,2.95]
[1762601933377,0.04613457,159.96,159.95,2.95]
[1762601933879,0.04613457,159.96,159.92,0.04404102]
[1762601934080,2.07525104,159.96,159.93,2.95]
[1762601934481,2.07525104,159.96,159.93,8.5804]
[1762601934778,3.18613457,159.96,159.93,2.95]
[1762601935079,3.14,159.95,159.92,0.04404102]
[1762601935279,3.14,159.95,159.92,2.99404102]
[1762601935869,3.14,159.95,159.92,0.04404102]
[1762601936072,3.14,159.93,159.92,0.04404102]
[1762601939977,3.14,159.92,159.87,5.6324]
[1762601940282,3.14,159.9,159.87,8.5824]
[1762601940574,3.14,159.9,159.87,2.95]
[1762601940770,3.14,159.9,159.84,2.95]
[1762601940968,0.04452404,159.89,159.86,3.01]
[1762601941373,0.04452404,159.89,159.86,8.6429]
[1762601942080,0.04452404,159.89,159.87,3.01]
[1762601942684,0.04452404,159.89,159.87,8.6426]
[1762601943280,0.04452404,159.89,159.88,3.01]
[1762601943578,0.04452404,159.89,159.64,19.36054773]
[1762601943579,18.78,159.85,159.64,19.36054773]
[1762601943781,3.19,159.73,159.65,2.75995424]
[1762601944083,3.19,159.71,159.61,5.6416]
[1762601944279,5.54158281,159.7,159.61,5.6416]
[1762601944482,5.54158281,159.69,159.62,2.75995424]
[1762601944783,0.04622342,159.67,159.64,0.04432827]
[1762601944984,5.54158281,159.66,159.64,0.04680514]
[1762601945182,0.04438625,159.67,159.65,2.75995424]
[1762601945478,3.19,159.72,159.65,5.76995424]
[1762601945684,5.3526012,159.71,159.67,3.01]
[1762601945876,5.35207127,159.7,159.65,2.75995424]
[1762601946082,8.54207127,159.69,159.6,3.01]
[1762601946387,5.34318265,159.68,159.62,3.01]
[1762601946585,0.04783558,159.67,159.63,3.0565768]
[1762601946982,3.23783558,159.67,159.63,0.0465768]
[1762601947279,8.53102181,159.66,159.63,2.80653104]
[1762601947474,3.19,159.64,159.63,0.0465768]
[1762601948176,3.19,159.66,159.63,0.0465768]
[1762601949386,5.28421479,159.65,159.63,2.80653104]
[1762601949687,3.19,159.66,159.63,0.0465768]
[1762601949885,8.47427913,159.65,159.63,0.0465768]
[1762601950091,3.19,159.65,159.63,2.80653104]
[1762601950288,5.27700754,159.64,159.63,2.80653104]
[1762601950591,3.19,159.65,159.63,2.80653104]
[1762601951293,3.19,159.65,159.63,0.0465768]
[1762601951484,8.4608355,159.64,159.63,0.0465768]
[1762601953296,3.23783558,159.67,159.63,2.80653104]
[1762601953587,3.19,159.65,159.63,2.80653104]
[1762601953789,5.26105673,159.64,159.63,2.80653104]
[1762601954789,8.45105673,159.64,159.63,2.80653104]
[1762601954995,8.45105673,159.64,159.63,0.0465768]
[1762601955192,8.45105673,159.64,159.63,2.75995424]
[1762601955193,5.26105673,159.64,159.63,2.75995424]
[1762601955398,5.25327453,159.64,159.63,2.75995424]
[1762601955596,5.25327453,159.64,159.59,3.01]
[1762601955894,5.2533001,159.63,159.6,2.75995424]
[1762601956094,3.19,159.61,159.6,2.80765913]
[1762601956298,8.4433001,159.61,159.6,0.04770489]
[1762601957197,3.19,159.61,159.6,0.04770489]
[1762601958493,3.23325462,159.63,159.6,2.80765913]
[1762601958695,3.23325462,159.63,159.61,2.75995424]
[1762601958894,0.04325462,159.63,159.61,2.75995424]
[1762601959094,0.04325462,159.63,159.62,5.76995424]
[1762601959304,0.04325462,159.63,159.62,3.01]
[1762601959494,0.04325462,159.63,159.62,5.76995424]
[1762601959696,0.04325462,159.63,159.62,2.75995424]
[1762601962889,0.04325462,159.63,159.62,5.76995424]
[1762601963093,5.17831123,159.7,159.63,3.01]
[1762601963293,5.02947753,159.69,159.63,5.76995424]
[1762601963494,3.19,159.69,159.64,5.76995424]
[1762601963696,3.19,159.69,159.64,3.01]
[1762601963900,8.21968175,159.68,159.65,2.75995424]
[1762601964098,3.23646981,159.68,159.65,0.04506962]
[1762601964408,3.23646981,159.68,159.65,2.80502386]
[1762601968305,3.23646981,159.68,159.58,3.01]
[1762601968503,3.19,159.66,159.58,3.01]
[1762601968807,3.19,159.66,159.59,5.76995424]
[1762601969008,2.03450484,159.68,159.6,3.01]
[1762601969200,2.03450484,159.68,159.61,3.01]
[1762601969396,0.04026823,159.66,159.63,3.05718915]
[1762601969812,3.23026823,159.66,159.64,2.75995424]
[1762601972805,5.26477307,159.66,159.64,2.75995424]
[1762601973009,2.96,159.64,159.56,2.95]
[1762601973310,2.96,159.63,159.56,2.95]
[1762601973500,2.96,159.63,159.58,8.5927]
[1762601973701,2.96,159.63,159.58,2.95]
[1762601974012,3.00032537,159.62,159.59,2.75995424]
[1762601974412,4.99450484,159.61,159.6,2.75995424]
[1762601974608,4.99450484,159.61,159.54,2.95]
[1762601974806,4.99450484,159.61,159.55,5.70995424]
[1762601975115,0.04131234,159.6,159.55,2.95]
[1762601975303,0.04131234,159.6,159.57,2.95]
[1762601975704,0.04131234,159.6,159.58,2.75995424]
[1762601976104,0.04131234,159.6,159.59,2.75995424]
[1762601976305,0.04131234,159.6,159.58,2.75995424]
[1762601976913,0.04131234,159.6,159.57,2.95]
[1762601977214,0.04131234,159.6,159.58,2.75995424]
[1762601977609,3.00131234,159.6,159.59,2.75995424]
[1762601977812,3.00131234,159.6,159.53,2.95]
[1762601978012,3.00131234,159.6,159.54,5.70995424]
[1762601978315,3.00131234,159.6,159.54,2.95]
[1762601978512,3.00131234,159.6,159.55,5.70995424]
[1762601978815,3.00131234,159.6,159.55,2.95]
[1762601979012,3.00131234,159.6,159.56,5.70995424]
[1762601979319,5.0267422,159.59,159.56,5.70995424]
[1762601979610,3.00131234,159.6,159.57,2.75995424]
[1762601979817,5.02688625,159.59,159.57,2.75995424]
[1762601980112,3.00131234,159.6,159.58,2.75995424]
[1762601980315,5.02651911,159.59,159.57,2.75995424]
[1762601980518,3.00131234,159.6,159.57,2.75995424]
[1762601980716,5.0325154,159.59,159.58,2.75995424]
[1762601980915,5.0325154,159.59,159.57,2.75995424]
[1762601981104,3.00131234,159.6,159.57,2.75995424]
[1762601981305,5.03298384,159.59,159.58,2.75995424]
[1762601981515,5.03298384,159.59,159.58,2.95]
[1762601981811,5.03298384,159.59,159.58,5.70995424]
[1762601982016,0.04131234,159.6,159.59,2.95]
[1762601982208,5.0805741,159.6,159.59,5.70995424]
[1762601982606,0.04131234,159.6,159.59,11.35245424]
[1762601982817,3.03373078,159.65,159.6,2.95]
[1762601983019,2.96,159.66,159.6,2.95]
[1762601983211,12.4873899,159.65,159.6,2.95]
[1762601983413,4.83428323,159.64,159.6,2.95]
[1762601983619,3.02,159.65,159.6,2.95]
[1762601983811,0.04102211,159.64,159.61,0.04408308]
[1762601984321,0.04102211,159.64,159.61,3.01408308]
[1762601986205,4.8444395,159.63,159.61,3.01408308]
[1762601986417,0.04102211,159.64,159.61,3.01408308]
[1762601986613,4.84505606,159.63,159.61,3.01408308]
[1762601986815,0.04102211,159.64,159.61,3.01408308]
[1762601987016,4.84505233,159.63,159.61,3.01408308]
[1762601987216,4.85673815,159.62,159.61,3.01408308]
[1762601989517,4.85673815,159.62,159.61,0.04408308]
[1762601991317,4.85673815,159.62,159.61,3.01408308]
[1762601994223,7.87673815,159.62,159.61,0.04408308]
[1762601995017,4.85673815,159.62,159.61,0.04408308]
[1762601995219,7.87673815,159.62,159.61,0.04408308]
[1762601996315,3.02,159.62,159.61,0.04408308]
[1762601996517,3.02,159.61,159.55,2.97]
[1762601997516,0.04528385,159.6,159.55,2.97]
[1762601998123,0.04528385,159.6,159.57,2.97]
[1762601998818,0.04528385,159.6,159.57,8.6131]
[1762602000220,0.04528385,159.6,159.57,2.97]
[1762602000827,3.06528385,159.6,159.57,2.97]
[1762602001426,3.06528385,159.6,159.55,8.7138]
[1762602001627,3.06528385,159.6,159.55,3.07]
[1762602001829,3.06528385,159.6,159.52,1.76536314]
[1762602002119,3.03,159.58,159.52,1.76536314]
[1762602002321,3.03,159.56,159.52,1.76536314]
[1762602002523,3.03,159.52,159.41,15.39675613]
[1762602002726,3.03,159.46,159.42,3.07]
[1762602002920,0.04067096,159.46,159.42,3.07]
[1762602003230,0.04067096,159.46,159.4,5.6491]
[1762602003231,3.07067096,159.46,159.4,5.6491]
[1762602003427,3.06952002,159.45,159.41,3.07]
[1762602003822,0.03952002,159.45,159.41,8.7187]
[1762602004028,0.03952002,159.45,159.41,3.07]
[1762602004225,3.03,159.44,159.36,3.07]
[1762602004424,0.04387822,159.42,159.38,3.07]
[1762602004722,0.04261553,159.42,159.38,3.07]
[1762602004927,0.04261553,159.42,159.41,3.07]
[1762602005325,0.04261553,159.42,159.34,3.07]
[1762602005524,0.04261553,159.42,159.39,5.6493]
[1762602005725,0.04261553,159.42,159.4,3.07]
[1762602007623,0.04261553,159.42,159.41,3.07]
[1762602008732,3.03,159.51,159.45,3.07]
[1762602008933,6.21029858,159.54,159.45,3.07]
[1762602009231,3.03,159.53,159.46,5.6469]
[1762602009530,6.25497917,159.51,159.48,0.0405473]
[1762602009730,3.03,159.5,159.48,0.0405473]
[1762602011231,3.03,159.49,159.42,3.07]
[1762602011425,3.03,159.48,159.42,3.07]
[1762602012232,0.04094509,159.47,159.42,3.07]
[1762602013040,0.04094509,159.47,159.44,3.07]
[1762602013227,0.04024291,159.47,159.44,3.07]
[1762602013426,0.04024291,159.47,159.46,3.07]
[1762602015836,3.03,159.56,159.48,8.7163]
[1762602016029,3.03,159.56,159.49,3.07]
[1762602016625,0.04776531,159.54,159.51,0.03958086]
[1762602016824,0.04776531,159.54,159.51,3.10958086]
[1762602017530,0.04776531,159.54,159.53,3.07]
[1762602017735,0.04776531,159.54,159.51,3.10958086]
[1762602018135,0.04776531,159.54,159.53,3.07]
[1762602018332,3.03,159.61,159.53,3.07]
[1762602018641,3.03,159.61,159.54,5.6441]
[1762602018934,3.03,159.61,159.54,8.7141]
[1762602019239,0.04036534,159.59,159.56,0.04241653]
[1762602019439,0.04036534,159.59,159.56,3.11241653]
[1762602020243,3.07036534,159.59,159.56,0.04241653]
[1762602021433,1.30036534,159.59,159.48,3.07]
[1762602021640,3.03,159.58,159.48,3.07]
[1762602021934,3.03,159.56,159.48,3.07]
[1762602022124,3.03,159.56,159.48,8.7162]
[1762602022326,3.03,159.55,159.48,3.07]
[1762602022631,3.0753406,159.53,159.5,0.04731842]
[1762602024032,3.03,159.51,159.37,3.07]
[1762602024238,3.03,159.51,159.38,3.07]
[1762602024529,3.03,159.51,159.39,3.07]
[1762602025134,0.03994211,159.47,159.44,3.07]
[1762602028936,0.03994211,159.47,159.45,5.6473]
[1762602029234,7.8779438,159.58,159.38,64.78]
[1762602029235,3.03,159.55,159.46,3.07]
[1762602030338,0.04513854,159.52,159.5,3.07]
[1762602030542,7.53905097,159.61,159.5,3.07]
[1762602030736,3.03,159.6,159.5,3.07]
[1762602031136,3.03,159.59,159.5,3.07]